Cogmind - Beta 13 @@@ ROGUE MODE // 2024.04.21 @ 21:23:28 Player: YBOUZL Result: Destroyed by Y-45 Defender with Heavy Assault Rifle Performance ------------- Evolutions (2) 1000 Regions Visited (3) 600 Robots Destroyed (34) 170 Value Destroyed (962) 962 Prototype IDs (1) 20 Alien Tech Used (0) 0 Bonus (0) 0 TOTAL SCORE: 2752 Bonus ------- None Cogmind --------- Core Integrity 0/550 Matter 226/300 Energy 75/100 System Corruption 6% Temperature Cool (1) Movement Walking (120) Location -8/Materials Parts ------- > --- POWER (2) -------- (None) > --- PROPULSION (4) --- Aluminum Leg > --- UTILITY (3) ------ Hacking Suite > --- WEAPON (2) ------- (None) > --- INVENTORY (5) ---- (None) Peak State ------------ > --- POWER ------------ Light Nuclear Core > --- PROPULSION ------- Titanium Leg Titanium Leg Titanium Leg Titanium Leg > --- UTILITY ---------- Cryofiber Web Huge Storage Unit > --- WEAPON ----------- Heavy Particle Cannon Heavy Particle Cannon > --- INVENTORY -------- Ion Engine Ion Engine Ion Engine Ion Engine Light Ion Engine Aluminum Leg Aluminum Leg Aluminum Leg Aluminum Leg Aluminum Leg Aluminum Leg Aluminum Leg Aluminum Leg Improved Aluminum Leg Improved Aluminum Leg Terrain Scanner Terrain Scan Processor Seismic Detector Improved Propulsion Shielding Improved Propulsion Shielding Heavy Particle Cannon Heavy Particle Cannon Assault Rifle Assault Rifle Light Cannon [Rating: 28] Favorites ----------- Power Ion Engine Engine Ion Engine Power Core Light Nuclear Core Propulsion Aluminum Leg Leg Aluminum Leg Hover Unit Airjet Utility Huge Storage Unit Device Cryofiber Web Storage Huge Storage Unit Processor Terrain Scan Processor Hackware Hacking Suite Protection Improved Propulsion Shielding Weapon Heavy Particle Cannon Energy Gun Particle Gun Energy Cannon Heavy Particle Cannon Ballistic Gun Assault Rifle Ballistic Cannon Light Cannon Build | -11 -10 -9 -8 ------- Run | Yrd Mat Mat Mat Slots Evolved 4 | . . 2 2 Power 1 | . . . 1 Propulsion 2 | . . 2 . Utility 1 | . . . 1 Weapon . | . . . . Parts Attached 59 | 6 8 23 22 Power 11 | 1 1 6 3 Engine 9 | 1 1 4 3 Core 2 | . . 2 . Reactor . | . . . . Propulsion 22 | 2 . 12 8 Treads . | . . . . Leg 21 | 2 . 12 7 Wheel . | . . . . Hover 1 | . . . 1 Flight . | . . . . Utility 10 | 1 4 1 4 Device 3 | . 1 1 1 Storage 4 | 1 3 . . Processor 1 | . . . 1 Hackware 1 | . . . 1 Protection 1 | . . . 1 Artifact . | . . . . Weapon 16 | 2 3 4 7 Energy Gun 2 | . 1 . 1 Energy Cannon 5 | . . 3 2 Ballistic Gun 6 | 2 1 . 3 Ballistic Cannon 3 | . 1 1 1 Launcher . | . . . . Special Weapon . | . . . . Impact Weapon . | . . . . Slashing Weapon . | . . . . Piercing Weapon . | . . . . Special Melee Weapon . | . . . . Unidentified Prototypes 1 | . . . 1 Parts Lost 31 | . 6 4 21 Power 5 | . 1 1 3 Propulsion 12 | . 1 2 9 Utility 4 | . . . 4 Weapon 10 | . 4 1 5 Highest Loss Streak 14 | . 4 2 14 To Critical Strikes . | . . . . Average Slot Usage (%) 91 | . 88 99 78 Engine 9 | . 14 5 12 Core 2 | . . 5 . Leg 34 | . 19 43 28 Device 11 | . 12 11 9 Storage 10 | . 14 11 6 Energy Gun 1 | . 7 . . Energy Cannon 12 | . . 19 14 Ballistic Gun 5 | . 18 1 . Naked Turns 24 | . . . 24 Heaviest Build 110 | 12 91 103 110 Greatest Support 68 | 20 20 68 60 Greatest Overweight (x) 9 | 2 9 2 2 Average Overweight (x) 1 | . 1 1 . Largest Inventory Capacity 25 | 8 25 25 25 Average Capacity 20 | 7 13 25 20 Most Carried 25 | 6 12 25 20 Average Carried 15 | 2 7 20 14 Final Capacity 25 | 8 25 25 5 Final Carried 21 | 2 12 21 . Class Distribution -------------------- 79% | Mutant 20% | Scavenger-Mutant Dominant Class ---------------- Mutant | -10/Materials Mutant | -9/Materials Scavenger-Mutant | -8/Materials Resources | -11 -10 -9 -8 ----------- Run | Yrd Mat Mat Mat Matter Collected 874 | 232 261 221 160 Remotely . | . . . . Salvage Created 1119 | . 197 799 123 Parts 67 | . 15 45 7 Haulers Intercepted . | . . . . Recyclers Shooed . | . . . . Parts Field Recycled . | . . . . Retrieved Matter . | . . . . Parts Self-Destructed . | . . . . Prevented . | . . . . Kills | -11 -10 -9 -8 ------- Run | Yrd Mat Mat Mat Combat Hostiles Destroyed 24 | . 6 16 2 Guns 5 | . 5 . . Cannons 19 | . 1 16 2 Classes Destroyed 11 | . 4 7 . Worker 1 | . . 1 . Builder 3 | . 1 2 . Tunneler 1 | . . 1 . Mechanic 1 | . . 1 . Operator 1 | . . 1 . Watcher 3 | . 1 1 1 Swarmer 3 | . 3 . . Grunt 16 | . 3 11 2 Brawler 1 | . . 1 . Duelist 2 | . . 2 . Sentry 2 | . . 2 . Best Kill Streak 6 | . 5 6 1 Combat Bots Only 3 | . 3 3 1 Max Kills in Single Turn 2 | . 1 2 1 Gunslinging . | . . . . Exploded . | . . . . Melee . | . . . . Uniques/NPCs Destroyed . | . . . . Combat | -11 -10 -9 -8 -------- Run | Yrd Mat Mat Mat Hostile Shots Fired 383 | . 108 111 164 Missed 89 | . 31 32 26 Damage Taken 4209 | . 923 958 2328 Core 895 | . 249 93 553 Absorbed by Shields . | . . . . Redirected to Shielding 71 | . . . 71 Core Remaining (%) 58 | 100 . 76 . Volleys Fired 123 | . 40 53 30 Largest 2 | . 2 2 2 Hottest 150 | . 85 150 150 Shots Fired 213 | . 70 94 49 Gun 63 | . 59 . 4 Cannon 150 | . 11 94 45 Launcher . | . . . . Special . | . . . . Kinetic 73 | . 68 . 5 Thermal 140 | . 2 94 44 Explosive . | . . . . Electromagnetic . | . . . . Robot Hit Streak 5 | . 5 5 4 Robot Miss Streak 6 | . 5 6 3 Penetration Max . | . . . . Secondary Targets . | . . . . Shots Hit Robots 106 | . 35 45 26 Core Hits 46 | . 13 24 9 Critical Kills . | . . . . Critical Parts Destroyed 1 | . 1 . . Critical Strikes 2 | . 2 . . Burn 1 | . 1 . . Destroy 1 | . 1 . . Melee Attacks . | . . . . Impact . | . . . . Slashing . | . . . . Piercing . | . . . . Sneak Attacks . | . . . . Combat Hostiles . | . . . . Follow-up Attacks . | . . . . Damage Inflicted 2559 | . 510 1315 734 Guns 412 | . 384 . 28 Cannons 2092 | . 126 1300 666 Explosions . | . . . . Melee . | . . . . Ramming 55 | . . 15 40 Kinetic 539 | . 495 . 44 Thermal 1965 | . 15 1300 650 Explosive . | . . . . Electromagnetic . | . . . . Impact . | . . . . Slashing . | . . . . Piercing . | . . . . Highest Corruption 6 | . . . 6 Average Corruption 5 | . . . 5 Corruption Purged . | . . . . Corruption Blocked . | . . . . Effects 1 | . . . 1 Matter Fused 1 | . . . 1 Overload Shots . | . . . . Overflow Damage 24 | . . 5 19 Projectiles 24 | . . 5 19 Explosions . | . . . . Melee . | . . . . Knockbacks 7 | . 5 1 1 Impact 2 | . . 1 1 Kinetic 4 | . 4 . . Secondary 1 | . 1 . . Self-Inflicted Damage 12 | . . . 12 Shots . | . . . . Rammed 5 | . . . 5 Targets Rammed 12 | . . 2 10 Kicked 7 | . . 2 5 Crushed . | . . . . Highest Temperature 677 | . 130 677 602 Average Temperature 226 | . 56 212 304 Received Heat Transfer 2043 | . 498 456 1089 Effects 41 | . . 11 30 Shutdowns 11 | . . 1 10 Energy Bleed 5 | . . 2 3 Interference 7 | . . 2 5 Matter Decay 2 | . . 1 1 Short Circuit 4 | . . 1 3 Damage (minor) 4 | . . 1 3 Damage (major) 8 | . . 3 5 Siege Activations . | . . . . Robots Corrupted . | . . . . Combat Hostiles . | . . . . Parts Fried . | . . . . Impact Corruptions . | . . . . Robots Melted . | . . . . Combat Hostiles . | . . . . Parts Melted 6 | . 1 4 1 Heat Transferred 2997 | . 111 1924 962 Parts Sabotaged . | . . . . Parts Stolen . | . . . . Parts Stripped . | . . . . Power Chain Reactions . | . . . . Alert | -11 -10 -9 -8 ------- Run | Yrd Mat Mat Mat Peak Influence 230 | . 147 230 146 Initial 76 | . . 1 76 Average 77 | . 73 81 85 Maximum Alert Level 1 | . . 1 . Low Security (%) 99 | 100 100 98 100 Level 1 . | . . 1 . Level 2 . | . . . . Level 3 . | . . . . Level 4 . | . . . . Level 5 . | . . . . High Security . | . . . . Max Security . | . . . . Squads Dispatched 8 | . 2 3 3 Investigation 3 | . 1 2 . Extermination . | . . . . Reinforcement 5 | . 1 1 3 Assault . | . . . . Garrison . | . . . . Intercept . | . . . . Searches Triggered . | . . . . Construction Impeded . | . . . . Haulers Reinforced . | . . . . Active Scanning Responses . | . . . . Cargo Convoy Interrupts . | . . . . Stealth | -11 -10 -9 -8 --------- Run | Yrd Mat Mat Mat Distress Signals 4 | . 2 . 2 Communications Jammed . | . . . . Distress Signals . | . . . . Times Spotted 57 | . 11 24 22 Peak Tracking Total 15 | . 5 4 15 Tactical Retreats 4 | . . . 4 Traps | -11 -10 -9 -8 ------- Run | Yrd Mat Mat Mat Traps Triggered 1 | . . 1 . Indirectly . | . . . . Trap Hack Attempts . | . . . . Triggered . | . . . . Disarmed . | . . . . Reprogrammed . | . . . . Reused . | . . . . Traps Extracted . | . . . . Installed . | . . . . Triggered . | . . . . Machines | -11 -10 -9 -8 ---------- Run | Yrd Mat Mat Mat Machines Disabled 2 | . . 1 1 Max in Single Turn 1 | . . 1 1 Garrison Access 1 | . . . 1 Machines Repaired . | . . . . Machines Dismantled . | . . . . Machines Sabotaged . | . . . . Overloaded Fab Kills . | . . . . Hacking | -11 -10 -9 -8 --------- Run | Yrd Mat Mat Mat Machines Accessed 7 | . 2 2 3 Terminals 5 | . 2 2 1 Fabricators . | . . . . Repair Stations . | . . . . Recycling Units 1 | . . . 1 Scanalyzers . | . . . . Garrison Access 1 | . . . 1 Total Hacks 15 | . 4 3 8 Successful 7 | . 2 1 4 Failed 8 | . 2 2 4 Catastrophic 4 | . 2 2 . Database Lockouts . | . . . . Manual . | . . . . Terminals 10 | . 4 3 3 Fabricators . | . . . . Repair Stations . | . . . . Recycling Units 2 | . . . 2 Scanalyzers . | . . . . Garrison Access 3 | . . . 3 Terminal Hacks 5 | . 2 1 2 Record 1 | . . 1 . Branch Access Points 1 | . 1 . . Alert Level 2 | . 1 . 1 Zone Layout 1 | . . . 1 Fabricator Hacks . | . . . . Repair Station Hacks . | . . . . Recycling Unit Hacks 1 | . . . 1 Retrieve Components 1 | . . . 1 Scanalyzer . | . . . . Garrison Access Hacks 1 | . . . 1 Seal Access 1 | . . . 1 Unauthorized Hacks . | . . . . Terminals . | . . . . Fabricators . | . . . . Repair Stations . | . . . . Recycling Units . | . . . . Scanalyzers . | . . . . Garrison Access . | . . . . Data Cores Recovered . | . . . . Used . | . . . . Hacking Detections 3 | . 1 1 1 Full Trace Events 2 | . 1 1 . Feedback Events . | . . . . Feedback Blocked . | . . . . Robot Schematics Acquired . | . . . . Robots Built . | . . . . Authchips . | . . . . Time . | . . . . Total Robot Build Rating . | . . . . Part Schematics Acquired . | . . . . Parts Built . | . . . . Authchips . | . . . . Time . | . . . . Total Part Build Rating . | . . . . Parts Repaired . | . . . . Time . | . . . . Parts Recycled . | . . . . Recycled Matter . | . . . . Retrieved Matter . | . . . . Retrieved Components 8 | . . . 8 Parts Scanalyzed . | . . . . Part Schematics Acquired . | . . . . Parts Damaged . | . . . . Bothacking | -11 -10 -9 -8 ------------ Run | Yrd Mat Mat Mat Used RIF Installer . | . . . . Robots Hacked . | . . . . Non-combat . | . . . . Combat . | . . . . Robot Hacks Applied . | . . . . Relay Couplers Released 3 | . . . 3 Machine Destruction 3 | . . . 3 Fabnet Peak Effective % . | . . . . Robots Rewired . | . . . . Allies Hacked . | . . . . Hacks Repelled . | . . . . Allies | -11 -10 -9 -8 -------- Run | Yrd Mat Mat Mat Total Allies . | . . . . Largest Group . | . . . . Highest-Rated Group . | . . . . Highest-Rated Ally . | . . . . Total Orders . | . . . . Ally Attacks . | . . . . Total Damage . | . . . . Kills . | . . . . Allies Corrupted . | . . . . Allies Melted . | . . . . Intel | -11 -10 -9 -8 ------- Run | Yrd Mat Mat Mat Robot Analysis Total . | . . . . Derelict Logs Recovered . | . . . . Drone Launches . | . . . . Drone Recoveries . | . . . . Exploration | -11 -10 -9 -8 ------------- Run | Yrd Mat Mat Mat Turns Passed 1970 | 55 496 989 430 Spaces Moved 737 | 44 166 321 206 Core 92 | 19 . . 73 Treads . | . . . . Legs 638 | 25 166 321 126 Wheels . | . . . . Hover 7 | . . . 7 Flight . | . . . . Fastest Speed 50 | 50 120 192 50 Average Speed 204 | 96 220 245 148 Slowest Speed 750 | 150 750 260 263 Overloaded Moves . | . . . . Propulsion Burnouts . | . . . . Robots Hopped . | . . . . Cave-ins Triggered . | . . . . Exploration Rate (%) 22 | 4 33 29 22 Regions Visited 3 Branch Regions . Pre-discovered Areas . | . . . . Known Exits Taken . | . . . . Unknown Exits Taken 3 | 1 1 1 . Scrap Searched . | . . . . Spaces Dug . | . . . . Terrain Destroyed 55 | . . 38 17 Melee . | . . . . Projectile 55 | . . 38 17 AOE . | . . . . Terrain Rammed . | . . . . Walls Destroyed . | . . . . Machines Disabled . | . . . . Actions | -11 -10 -9 -8 --------- Run | Yrd Mat Mat Mat Total 988 | 55 230 422 281 Wait . | . . . . Move 734 | 43 165 320 206 Hop . | . . . . Pick Up 48 | 6 16 19 7 Fast Attach 2 | 2 . . . Attach 40 | 4 5 10 21 Detach 3 | . . 1 2 Swap 17 | . 3 13 1 Drop 9 | . 1 4 4 Fire 123 | . 40 53 30 Melee . | . . . . Ram 5 | . . . 5 Kick 7 | . . 2 5 Crush . | . . . . Escape Stasis . | . . . . Rewire . | . . . . Trap . | . . . . Miscellaneous . | . . . . Route ------- -11/Scrapyard -10/Materials (discovered 3 exits: *Mat / Min x2) -9/Materials -8/Materials History --------- Turn | Location | Event 7 | -11/Scrapyard | Discovered new exit (range 14) 56 | -11/Scrapyard | Entered Materials 122 | -10/Materials | Identified exit to Mines 210 | -10/Materials | Discovered new exit (range 16) 248 | -10/Materials | Core integrity fell below 50% 270 | -10/Materials | Core integrity fell below 20% 303 | -10/Materials | Build established: Mutant 310 | -10/Materials | Lost 4 parts (1n3w) 552 | -10/Materials | Entered another Materials area 552 | -9/Materials | Evolved 2 slots: Propulsion x2 1535 | -9/Materials | Discovered new exit (range 4) 1541 | -9/Materials | Entered another Materials area 1541 | -8/Materials | Evolved 2 slots: Power x1, Utility x1 1723 | -8/Materials | Lost 3 parts (1p1u1w) 1890 | -8/Materials | Core integrity fell below 50% 1919 | -8/Materials | Lost 14 parts (2p7n3u2w) 1922 | -8/Materials | Core integrity fell below 20% 1971 | -8/Materials | Destroyed by Y-45 Defender with Heavy Assault Rifle Last Messages --------------- Broken Titanium Leg Aluminum Leg Aluminum Leg Imp. Signal Interpreter Visual Processing Unit Imp. Hover Unit Broken Hvy. Particle Cannon Aluminum Leg Acquired Aluminum Leg. Slammed into R-06 Scavenger. K-01 Serf collects debris. Acquired Hacking Suite. K-01 Serf collects debris. System corrupted: Matter fused (-8). Kicked Y-45 Defender. Kicked Y-45 Defender out of the way. Kicked G-50 Soldier. Assault Rifle destroyed. Aluminum Leg destroyed. Kicked G-50 Soldier. Map ----- +----------------------------------------------------+ | | | | | | | | | | | | | | | | | | | | | | | | | | | | | | | | | | | | | | | ??????????#############??????????????????????? | | ??????????# gg #??????????????????????? | | ??????????# """"""" !##?????????????????????? | | ??????????# """"""" Y #?????????????????????? | | ??????????# """"""" l##?????????????????????? | | ??????????#! """"""" g#??????????????????????? | | ??????????# """""""g@#??????????????????????? | | ??????????# ggY Y #??????????????????????? | | ??????????#####+########?????????????????????? | | ??????????# #?????????????????????? | | ??????????# +?????????????????????? | | ???? / ###+#######?????????????????????? | | ???# ! # # ! #?????????????????????? | | ???######## # "" ! #?????????????????????? | | ???????? # "Y = =#?????????????????????? | | ????????? # ""=] #???????????????????#?? | | ????????#?# # != #???????????????????#?? | | ??????????# # """ #???????????????????#?# | | ??????????# + ! """ #???????????????????#?# | | ??????????# # """ #????????????????? ?#?? | | ?????????## ###########?????????????????? #?? | | ?????????# #???###########??????????????#?? | | ?????????# #####% ! [ #??????????????#?? | | ?????????# / [ #??????????????##? | | ?????????# #####]""""""" #? ????????? #?? | | ?????????##/###???# """"""" ## #???####?##?# | | ?????????? ?????# """"""" ## #? ?? ?### | | ?????????? ?????# """"""" ## #???"" ### | | ?????????? ?????# """"""" ## ## """ [? ## | | ?????????? ?????# ## ## """ ??## | | ?????????? ?????#####+##### # ##" | +----------------------------------------------------+ Best States ------------- Heat Dissipation 31 Energy Generation 17 Energy Capacity 415 Matter Stores 300 Matter Capacity 300 Sight Range 16 Terrain Scan Range 14 Terrain Scan Density 85 Base Temperature (-) 100 Propulsion Shielding 66 Evasion (%) 55 Offensive Hacking 10 Item Schematics ----------------- None Robot Schematics ------------------ None Fabricated ------------ Nothing Alien Tech Used ----------------- None Achievements -------------- None Challenges ------------ None Game ------ Seed PointTachyonSuperbattery Manual? 0 Play Time 00:25:33 Cumulative 5.7 hours Start 2024.04.21 @ 21:00:37 End 2024.04.21 @ 21:23:28 Sessions 1 Manual Loads 0 Difficulty Rogue Special Mode None Game No. 17 Rogue 17 Adventurer 0 Explorer 0 Win Type - Total 0 Types 0/0/0/0/0/0/0/0/0 Lore% 12 Gallery% 13 Achievement% 11 Wizard Run 0 Options --------- Layout 1 ASCII 0 Keyboard 0 Movement Mouse Keybinds 0 Fullscreen 1 Font 24/Smallcaps Map View 50x35 Zoom Use 0% Tactical HUD 0 Map Filters NONE Filters NONE Steam 1 RUN: dfa3fd75-831e-422f-8335-a93fb9b01276